Cogmind - Beta 16 @@@ ROGUE MODE // 2025.11.02 @ 23:30:30 Player: PlasticHeart Result: Self-destructed Performance ------------- Evolutions (1) 500 Regions Visited (5) 1000 Robots Destroyed (68) 340 Value Destroyed (1537) 1537 Prototype IDs (12) 240 Alien Tech Used (0) 0 Bonus (28) 28 TOTAL SCORE: 3645 Bonus ------- Follower Combat Kills 234 Friendly Fire -206 Cogmind --------- Core Integrity 79/400 Matter 275/300 Energy 96/100 System Corruption 4% Temperature Cool (0) Movement Walking (120) Location -9/Exiles Parts ------- > --- POWER (1) -------- (None) > --- PROPULSION (3) --- Aluminum Leg Aluminum Leg Aluminum Leg > --- UTILITY (3) ------ Large Storage Unit > --- WEAPON (2) ------- (None) > --- INVENTORY (15) --- Cooled Ion Engine Fission Core Improved Aluminum Leg High-capacity Matter Pod (200) Advanced Visual Processing Unit Seismic Detector Melee Analysis Suite Reaction Control System Improved Weapon Shielding Improved Assault Rifle Improved Assault Rifle Ripper Peak State ------------ > --- POWER ------------ Heavy Ion Engine > --- PROPULSION ------- Aluminum Leg Improved Aluminum Leg Carbon-fiber Leg > --- UTILITY ---------- Improved Heat Sink Large Storage Unit Light Armor Plating > --- WEAPON ----------- Heavy Particle Cannon Improved Assault Rifle > --- INVENTORY -------- Cooled Ion Engine Cooled Ion Engine Aluminum Leg Aluminum Leg High-capacity Matter Pod Seismic Detector Reaction Control System Improved Weapon Shielding Light Armor Plating Medium Armor Plating Advanced Beam Cannon Advanced Beam Cannon Advanced Beam Cannon Improved Grenade Launcher Ripper [Rating: 23] Favorites ----------- Power Heavy Ion Engine Engine Heavy Ion Engine Propulsion Aluminum Leg Treads Light Treads Leg Aluminum Leg Utility Improved Heat Sink Device Improved Heat Sink Storage Large Storage Unit Processor Targeting Computer Protection Light Armor Plating Weapon Improved Assault Rifle Energy Gun Medium Laser Energy Cannon Heavy Particle Cannon Ballistic Gun Improved Assault Rifle Launcher Improved Grenade Launcher Build | -11 -10 -10 -9 -9 -9 ------- Run | Yrd Mat Min Mat Min Exi Slots Evolved 2 | . . . 2 . . Power . | . . . . . . Propulsion 1 | . . . 1 . . Utility 1 | . . . 1 . . Weapon . | . . . . . . Parts Attached 51 | 7 6 10 20 5 3 Power 7 | 1 1 . 4 1 . Engine 7 | 1 1 . 4 1 . Core . | . . . . . . Reactor . | . . . . . . Propulsion 17 | 2 . 4 7 1 3 Treads 2 | 2 . . . . . Leg 15 | . . 4 7 1 3 Wheel . | . . . . . . Hover . | . . . . . . Flight . | . . . . . . Utility 12 | 2 2 1 5 2 . Device 2 | 1 . . 1 . . Storage 4 | 1 1 . 2 . . Processor 1 | . . 1 . . . Hackware . | . . . . . . Protection 5 | . 1 . 2 2 . Artifact . | . . . . . . Weapon 15 | 2 3 5 4 1 . Energy Gun 3 | . 1 2 . . . Energy Cannon 1 | . . . 1 . . Ballistic Gun 9 | 2 1 2 3 1 . Ballistic Cannon . | . . . . . . Launcher 2 | . 1 1 . . . Special Weapon . | . . . . . . Impact Weapon . | . . . . . . Slashing Weapon . | . . . . . . Piercing Weapon . | . . . . . . Special Melee Weapon . | . . . . . . Unidentified Prototypes 2 | . . . 2 . . Parts Lost 14 | . . 1 1 4 8 Power 2 | . . . . 1 1 Propulsion 4 | . . . . 1 3 Utility 6 | . . 1 1 2 2 Weapon 2 | . . . . . 2 Highest Loss Streak 8 | . . 1 1 4 8 To Critical Strikes 2 | . . . . . 2 Average Backups 11 | 5 7 9 13 12 14 Power 1 | 1 1 1 1 1 2 Propulsion 1 | 1 . 1 1 1 3 Utility 4 | . 3 2 5 6 6 Weapon 3 | . 2 3 4 3 3 Tool/Special . | . . . . . . Unused Backups 30 | 1 4 2 12 . 11 Power 4 | . . . 2 . 2 Propulsion 4 | . 2 . 1 . 1 Utility 12 | 1 2 . 3 . 6 Weapon 9 | . . 1 6 . 2 Tool/Special 1 | . . 1 . . . Average Slot Usage (%) 99 | . 99 99 98 99 91 Engine 11 | . 14 14 10 11 11 Treads 5 | . 28 2 . . . Leg 25 | . . 24 32 33 30 Device 7 | . 2 . 10 11 10 Storage 11 | . 14 14 11 11 11 Processor 4 | . . 12 7 . . Protection 6 | . 11 1 3 10 8 Energy Gun 1 | . . 13 . . . Energy Cannon 3 | . . . 9 . . Ballistic Gun 17 | . 27 14 12 21 18 Peak Build Rating 23 | 7 8 11 23 23 22 Average Rating 16 | 5 7 8 20 21 19 On Entrance 11 | . 7 7 9 22 22 Avg Prop Armor Cover (%) . | . . . . . . Naked Turns . | . . . . . . Heaviest Build 42 | 13 16 18 41 42 42 Greatest Support 40 | 40 40 40 38 36 33 Greatest Overweight (x) 5 | . . 5 1 1 2 Average Overweight (x) . | . . . . 1 . Largest Inventory Capacity 15 | 8 10 10 15 15 15 Average Capacity 12 | 7 8 10 14 15 15 Most Carried 15 | 7 10 10 15 15 15 Average Carried 11 | 5 7 9 13 12 14 Final Capacity 15 | 8 10 10 15 15 15 Final Carried 15 | 6 9 10 14 15 12 Class Distribution -------------------- 65% | Scavenger-Mutant 34% | Mutant Dominant Class ---------------- Mutant | -10/Materials Mutant | -10/Mines Scavenger-Mutant | -9/Materials Scavenger-Mutant | -9/Mines Scavenger-Mutant | -9/Exiles Resources | -11 -10 -10 -9 -9 -9 ----------- Run | Yrd Mat Min Mat Min Exi Matter Collected 1646 | 286 200 201 467 492 . Remotely . | . . . . . . Salvage Created 2193 | 137 365 266 1269 152 4 Parts 128 | 11 22 13 73 9 . Haulers Intercepted 7 | . 1 . 6 . . Recyclers Shooed . | . . . . . . Parts Field Recycled . | . . . . . . Retrieved Matter . | . . . . . . Parts Self-Destructed . | . . . . . . Prevented . | . . . . . . Parts Restored . | . . . . . . Kills | -11 -10 -10 -9 -9 -9 ------- Run | Yrd Mat Min Mat Min Exi Combat Hostiles Destroyed 57 | . 10 9 21 15 2 Guns 27 | . 10 6 . 11 . Cannons 18 | . . . 18 . . AOE 12 | . . 3 3 4 2 Classes Destroyed 12 | 2 5 . 3 2 . Worker 2 | . . . 1 1 . Tunneler 4 | 2 . 2 . . . Hauler 7 | . 1 . 6 . . Recycler 1 | 1 . . . . . Operator 2 | . 1 . 1 . . Watcher 5 | . 2 . 3 . . Swarmer 17 | . 6 3 4 4 . Grunt 20 | . 4 6 10 . . Duelist 1 | . . . 1 . . Sentry 6 | . . . 6 . . Demolisher 2 | . . . . 2 . Assembled 11 | . . . . 9 2 Thug 1 | . . . 1 . . Best Kill Streak 5 | 3 3 5 4 5 2 Combat Bots Only 5 | . 3 3 4 5 2 Max Kills in Single Turn 5 | 1 1 5 2 2 2 Gunslinging . | . . . . . . Exploded 3 | . . 3 2 2 2 Melee . | . . . . . . Uniques/NPCs Destroyed . | . . . . . . Combat | -11 -10 -10 -9 -9 -9 -------- Run | Yrd Mat Min Mat Min Exi Hostile Shots Fired 324 | . 63 53 89 46 73 Missed 99 | . 21 12 26 4 36 Hits 225 | . 42 41 63 42 37 Melee 6 | . . . 2 4 . Projectile 219 | . 42 41 61 38 37 AOE 12 | . . . . 12 . Critical Strikes 9 | . 2 1 2 1 3 Actively Blocked 1 | . 1 . . . . Damage Taken 3316 | . 435 586 847 881 567 Core 485 | . 103 61 114 78 129 Absorbed by Shields . | . . . . . . Redirected to Shielding 89 | . 54 35 . . . Regen/Repaired (Parts) 223 | . 38 . 185 . . Core Remaining (%) 67 | 100 . 34 . . . Volleys Fired 244 | 8 71 35 91 38 1 Largest 2 | 2 2 2 2 2 1 Hottest 98 | 40 40 85 98 46 36 Shots Fired 392 | 16 136 68 95 75 2 Gun 294 | 16 135 66 4 72 1 Cannon 89 | . . . 89 . . Launcher 9 | . 1 2 2 3 1 Special . | . . . . . . Kinetic 266 | 16 130 43 4 72 1 Thermal 112 | . . 23 89 . . Explosive 9 | . 1 2 2 3 1 Electromagnetic 5 | . 5 . . . . Robot Hit Streak 12 | 7 9 11 12 9 4 Robot Miss Streak 5 | 1 3 4 3 5 1 Penetration Max . | . . . . . . Secondary Targets 1 | . . . . 1 . Max Gunslinging Chain 1 | . . . . 1 . Shots Hit Robots 250 | 12 83 43 72 39 1 Core Hits 124 | 6 30 25 33 25 5 Critical Kills 2 | 1 1 . . . . Critical Parts Destroyed . | . . . . . . Critical Strikes 3 | 1 1 1 . . . Burn 1 | . . 1 . . . Destroy 2 | 1 1 . . . . Melee Attacks . | . . . . . . Impact . | . . . . . . Slashing . | . . . . . . Piercing . | . . . . . . Sneak Attacks . | . . . . . . Combat Hostiles . | . . . . . . Follow-up Attacks . | . . . . . . Damage Inflicted 4714 | 102 684 788 2065 921 154 Guns 1814 | 102 680 426 27 562 17 Cannons 1781 | . . . 1781 . . Explosions 1087 | . . 362 235 353 137 Melee . | . . . . . . Ramming 32 | . 4 . 22 6 . Kinetic 1607 | 102 680 219 27 562 17 Thermal 1988 | . . 207 1781 . . Explosive 1087 | . . 362 235 353 137 Electromagnetic . | . . . . . . Impact . | . . . . . . Slashing . | . . . . . . Piercing . | . . . . . . Highest Corruption 4 | . . . 4 4 4 Average Corruption 3 | . . . 3 4 4 Corruption Purged . | . . . . . . Corruption Blocked . | . . . . . . Effects 40 | . . . 4 34 2 Message Errors 9 | . . . 1 7 1 Matter Fused 16 | . . . 2 14 . Heat Flow Errors 4 | . . . . 4 . Energy Discharges 3 | . . . 1 2 . Data Loss (minor) 2 | . . . . 2 . Data Loss (major) 1 | . . . . 1 . Misfires 3 | . . . . 2 1 Alerts 2 | . . . . 2 . Overload Shots . | . . . . . . Overflow Damage 100 | . . 28 54 16 2 Projectiles 19 | . . . 19 . . Explosions 81 | . . 28 35 16 2 Melee . | . . . . . . Knockbacks . | . . . . . . Impact . | . . . . . . Kinetic . | . . . . . . Secondary . | . . . . . . Self-Inflicted Damage 78 | . . 45 . . 33 Shots 2 | . . 1 . . 1 Rammed 1 | . 1 . . . . Targets Rammed 7 | . 1 . 4 2 . Kicked 6 | . . . 4 2 . Crushed . | . . . . . . Highest Temperature 375 | . 24 375 143 240 . Average Temperature 59 | . 11 118 21 111 . Received Heat Transfer 738 | . 138 300 300 . . Effects 1 | . . 1 . . . Shutdowns 1 | . . 1 . . . Siege Activations . | . . . . . . Martial Activations . | . . . . . . Shielding Activations . | . . . . . . Robots Disrupted . | . . . . . . Combat Hostiles . | . . . . . . Robots Corrupted . | . . . . . . Combat Hostiles . | . . . . . . Parts Fried . | . . . . . . Impact Corruptions . | . . . . . . Robots Melted . | . . . . . . Combat Hostiles . | . . . . . . Parts Melted 3 | . . . 3 . . Heat Transferred 3256 | . . 629 2627 . . Parts Sabotaged . | . . . . . . Parts Stolen . | . . . . . . Parts Stripped . | . . . . . . Power Chain Reactions . | . . . . . . Alert | -11 -10 -10 -9 -9 -9 ------- Run | Yrd Mat Min Mat Min Exi Maximum Alert Level 1 | . . . 1 . . Low Security (%) 88 | 100 100 100 73 100 . Level 1 11 | . . . 26 . . Level 2 . | . . . . . . Level 3 . | . . . . . . Level 4 . | . . . . . . Level 5 . | . . . . . . High Security . | . . . . . . Max Security . | . . . . . . Peak Influence 327 | 10 87 118 327 122 . Initial 122 | . . 2 23 122 . Average 72 | 1 21 30 141 22 . Influence Increases 1941 | 15 327 291 1135 173 . Destroy 0b10 Robot/C 1180 | . 200 200 660 120 . Destroy 0b10 Robot/NC 115 | 15 20 10 65 5 . Destroy Leader 298 | . 46 40 192 20 . Allied During Kill 83 | . . 19 64 . . Successful Hack 70 | . 21 . 44 5 . Disable Machine 75 | . 15 . 60 . . Destroy Structure 90 | . 10 22 35 23 . Lose Combat Pursuer 30 | . 15 . 15 . . Influence Decreases 1941 | 15 320 238 880 488 . Entered New Map 235 | . . 5 37 193 . Time Decay 1486 | 15 320 223 663 265 . Lost Part 50 | . . 10 10 30 . Lost Ally 20 | . . . 20 . . Purge Threat 150 | . . . 150 . . Squads Dispatched 5 | . 1 2 2 . . Investigation 1 | . . 1 . . . Extermination . | . . . . . . Reinforcement 3 | . 1 . 2 . . Assault 1 | . . 1 . . . Garrison . | . . . . . . Intercept . | . . . . . . Searches Triggered . | . . . . . . Construction Impeded . | . . . . . . Haulers Reinforced . | . . . . . . Active Scanning Responses . | . . . . . . Cargo Convoy Interrupts . | . . . . . . Stealth | -11 -10 -10 -9 -9 -9 --------- Run | Yrd Mat Min Mat Min Exi Distress Signals 2 | . . . . 2 . Communications Jammed . | . . . . . . Distress Signals . | . . . . . . Times Spotted 92 | . 21 10 40 16 5 Peak Tracking Total 9 | . 3 3 5 3 9 Tactical Retreats 2 | . 1 . 1 . . Traps | -11 -10 -10 -9 -9 -9 ------- Run | Yrd Mat Min Mat Min Exi Traps Triggered 2 | . . . 2 . . Indirectly . | . . . . . . Trap Hack Attempts . | . . . . . . Triggered . | . . . . . . Disarmed 6 | . 6 . . . . Reprogrammed . | . . . . . . Reused . | . . . . . . Traps Extracted . | . . . . . . Installed . | . . . . . . Triggered . | . . . . . . Machines | -11 -10 -10 -9 -9 -9 ---------- Run | Yrd Mat Min Mat Min Exi Machines Disabled 7 | . 1 . 4 . 2 Max in Single Turn 2 | . 1 . 1 . 2 Machines Repaired . | . . . . . . Machines Dismantled . | . . . . . . Machines Sabotaged . | . . . . . . Overloaded Fab Kills . | . . . . . . Hacking | -11 -10 -10 -9 -9 -9 --------- Run | Yrd Mat Min Mat Min Exi Machines Accessed 22 | . 8 1 12 1 . Terminals 17 | . 7 . 9 1 . Fabricators . | . . . . . . Repair Stations 3 | . 1 . 2 . . Recycling Units . | . . . . . . Scanalyzers 1 | . . . 1 . . Garrison Access . | . . . . . . Total Hacks 57 | . 17 1 35 4 . Successful 35 | . 7 1 25 2 . Failed 21 | . 10 . 9 2 . Catastrophic 1 | . . . 1 . . Database Lockouts 1 | . . . 1 . . Manual 15 | . 8 . 5 2 . Terminals 38 | . 15 . 19 4 . Fabricators . | . . . . . . Repair Stations 16 | . 2 . 14 . . Recycling Units . | . . . . . . Scanalyzers 2 | . . . 2 . . Garrison Access . | . . . . . . Terminal Hacks 16 | . 5 1 9 1 . Record 1 | . 1 . . . . Robot Analysis 1 | . 1 . . . . Prototype ID Bank 7 | . 1 . 6 . . Open Door 1 | . . 1 . . . Unreport Threat 1 | . . . 1 . . Locate Traps 3 | . 1 . 2 . . Disarm Traps 1 | . 1 . . . . Zone Layout 1 | . . . . 1 . Fabricator Hacks . | . . . . . . Repair Station Hacks 14 | . 2 . 12 . . Scan Component 7 | . 1 . 6 . . Repair 7 | . 1 . 6 . . Recycling Unit Hacks . | . . . . . . Scanalyzer 1 | . . . 1 . . Retrieve Study 1 | . . . 1 . . Garrison Access Hacks . | . . . . . . Unauthorized Hacks 4 | . . . 3 1 . Terminals 4 | . . . 3 1 . Track 2 | . . . 1 1 . Botnet 2 | . . . 2 . . Fabricators . | . . . . . . Repair Stations . | . . . . . . Recycling Units . | . . . . . . Scanalyzers . | . . . . . . Garrison Access . | . . . . . . Data Cores Recovered 1 | . . . 1 . . Used . | . . . . . . Hacking Detections 19 | . 8 . 10 1 . Full Trace Events . | . . . . . . Feedback Events . | . . . . . . Feedback Blocked . | . . . . . . Robot Schematics Acquired . | . . . . . . Robots Built . | . . . . . . Authchips . | . . . . . . Time . | . . . . . . Total Robot Build Rating . | . . . . . . Part Schematics Acquired . | . . . . . . Parts Built . | . . . . . . Authchips . | . . . . . . Time . | . . . . . . Total Part Build Rating . | . . . . . . Part Studies Acquired . | . . . . . . Parts Repaired 7 | . 1 . 6 . . Time 255 | . 26 . 229 . . Parts Recycled . | . . . . . . Recycled Matter . | . . . . . . Retrieved Matter . | . . . . . . Retrieved Components . | . . . . . . Parts Scanalyzed . | . . . . . . Part Schematics Acquired . | . . . . . . Parts Damaged . | . . . . . . Bothacking | -11 -10 -10 -9 -9 -9 ------------ Run | Yrd Mat Min Mat Min Exi Used RIF Installer . | . . . . . . Robots Hacked . | . . . . . . Non-combat . | . . . . . . Combat . | . . . . . . Robot Hacks Applied . | . . . . . . Relay Couplers Released . | . . . . . . Fabnet Peak Effective % . | . . . . . . Robots Rewired . | . . . . . . Allies Hacked . | . . . . . . Hacks Repelled . | . . . . . . Allies | -11 -10 -10 -9 -9 -9 -------- Run | Yrd Mat Min Mat Min Exi Total Allies 5 | . . 4 . 1 . Largest Group 4 | . . 4 3 1 . Highest-Rated Group 102 | . . 102 93 31 . Highest-Rated Ally 31 | . . 31 31 31 . Total Orders . | . . . . . . Ally Attacks 60 | . . 15 40 5 . Total Damage 864 | . . 250 573 41 . Kills 16 | . . 1 14 1 . Allies Corrupted . | . . . . . . Allies Melted . | . . . . . . Intel | -11 -10 -10 -9 -9 -9 ------- Run | Yrd Mat Min Mat Min Exi Active Infowar (turns) 240 | 65 175 . . . . Seismic 240 | 65 175 . . . . Robot Analysis Total 1 | . 1 . . . . Derelict Logs Recovered 1 | . . . . 1 . Drone Launches . | . . . . . . Drone Recoveries . | . . . . . . Exploration | -11 -10 -10 -9 -9 -9 ------------- Run | Yrd Mat Min Mat Min Exi Turns Passed 6534 | 148 1190 858 2680 1523 135 Spaces Moved 3115 | 74 566 583 1145 675 72 Core 16 | 15 . 1 . . . Treads 640 | 59 566 15 . . . Legs 2459 | . . 567 1145 675 72 Wheels . | . . . . . . Hover . | . . . . . . Flight . | . . . . . . Fastest Speed 50 | 50 160 120 120 190 120 Average Speed 165 | 137 160 121 176 190 178 Slowest Speed 300 | 160 160 300 190 190 260 Overloaded Moves . | . . . . . . Propulsion Burnouts . | . . . . . . Robots Hopped . | . . . . . . Potential Cave-ins . | . . . . . . Cave-ins Triggered . | . . . . . . Exploration Rate (%) 66 | 6 81 93 91 96 31 Regions Visited 5 Branch Regions 3 Pre-discovered Areas . | . . . . . . Known Exits Taken . | . . . . . . Unknown Exits Taken 5 | 1 1 1 1 1 . Scrap Searched 2 | . . 1 . 1 . Spaces Dug . | . . . . . . Terrain Destroyed 112 | . 9 27 33 43 . Melee . | . . . . . . Projectile 17 | . . . 17 . . AOE 95 | . 9 27 16 43 . Terrain Rammed . | . . . . . . Walls Destroyed . | . . . . . . Machines Disabled . | . . . . . . Actions | -11 -10 -10 -9 -9 -9 --------- Run | Yrd Mat Min Mat Min Exi Total 4152 | 107 740 677 1710 841 77 Wait 608 | 6 79 28 385 110 . Move 3110 | 73 565 582 1144 674 72 Hop . | . . . . . . Pick Up 64 | 12 8 9 28 7 . Fast Attach 12 | 2 1 2 7 . . Attach 24 | 5 . 3 7 6 3 Detach . | . . . . . . Swap 31 | . 8 6 14 2 1 Drop 52 | 1 7 12 30 2 . Fire 244 | 8 71 35 91 38 1 Melee . | . . . . . . Ram . | . . . . . . Kick 6 | . . . 4 2 . Crush 1 | . 1 . . . . Escape Stasis . | . . . . . . Rewire . | . . . . . . Trap . | . . . . . . Miscellaneous . | . . . . . . Route ------- -11/Scrapyard -10/Materials (discovered 4 exits: *Mat x2 / *Min x2) -10/Mines (discovered 2 exits: *Mat / [*Sub]) -9/Materials (discovered 6 exits: [*Mat x2] / *Min x2 / [*Sto x2]) -9/Mines (discovered 4 exits: [*Mat x2] / [*Exi] / [*Zio]) -9/Exiles History --------- Turn | Location | Event 11 | -11/Scrapyard | Discovered new exit (range 16) 149 | -11/Scrapyard | Entered Materials 302 | -10/Materials | Build established: Mutant 388 | -10/Materials | Discovered new exit (range 15) 580 | -10/Materials | Discovered new exit (range 15) 784 | -10/Materials | Repaired Propulsion Shielding 976 | -10/Materials | Discovered new exit (range 13) 1168 | -10/Materials | Discovered new exit (range 16) 1339 | -10/Materials | Entered Mines 1415 | -10/Mines | Core integrity fell below 50% 1449 | -10/Mines | Escorted by a lone wolf Derelict 1477 | -10/Mines | Discovered new exit (range 8) 1698 | -10/Mines | A weapon hastily lodged in a ceiling crevice suddenly fell to the ground 1935 | -10/Mines | Met a Derelict shopkeep closing up shop 2176 | -10/Mines | Discovered new exit (range 10) 2177 | -10/Mines | Met a Derelict testing a Signal Generator 2197 | -10/Mines | Entered Materials 2197 | -9/Materials | Accompanied by 3 allies 2197 | -9/Materials | Evolved 2 slots: Propulsion x1, Utility x1 2202 | -9/Materials | Led the pair of lost Derelicts to an unsafe place 2379 | -9/Materials | Discovered new exit (range 10) 2396 | -9/Materials | Build established: Scavenger-Mutant 2444 | -9/Materials | Central database locked down 2801 | -9/Materials | Discovered new exit (range 4) 2903 | -9/Materials | Repaired Carbon-fiber Leg 2930 | -9/Materials | Repaired Aluminum Leg 2970 | -9/Materials | Repaired Imp. Heat Sink 3536 | -9/Materials | Repaired Hvy. Particle Cannon 3542 | -9/Materials | Discovered new exit (range 9) 3618 | -9/Materials | Repaired Imp. Heat Sink 3670 | -9/Materials | Repaired Hvy. Ion Engine 3839 | -9/Materials | Discovered new exit (range 16) 4454 | -9/Materials | Discovered new exit (range 5) 4867 | -9/Materials | Discovered new exit (range 6) 4877 | -9/Materials | Entered Mines 4923 | -9/Mines | Assembled infested the area 4924 | -9/Mines | Learned 2 Materials zone layouts 4928 | -9/Mines | Assisted by a Guerilla fighting off Assembled 5043 | -9/Mines | A Derelict revealed a hidden shortcut to a safe place 5317 | -9/Mines | Lost 4 parts (1p1n2u) 5624 | -9/Mines | Discovered new exit (range 5) 5787 | -9/Mines | Discovered new exit (range 14) 6042 | -9/Mines | Received a Mining Laser from a helpful Derelict 6392 | -9/Mines | Deemed a non-threat by the Exiles lab entrance 6392 | -9/Mines | Discovered new exit (range 5) 6400 | -9/Mines | Entered Exiles 6444 | -9/Exiles | Met 8R-AWN 6478 | -9/Exiles | Met EX-HEX 6499 | -9/Exiles | Attacked by the Exiles 6500 | -9/Exiles | Core integrity fell below 50% 6532 | -9/Exiles | Core integrity fell below 20% 6535 | -9/Exiles | Self-destructed Last Messages --------------- 06508_ Destroyed Asb. Hover Unit. 06508_ as-13476 destroyed. 06508_ as-38499 destroyed. 06508_ Assembled Analyzer disabled. 06508_ Machine disabled. 06510_ Imp. Grenade Launcher destroyed. 06510_ Penetrated by HV Slug. 06510_ Critical hit (Destroy). 06510_ Imp. Assault Rifle destroyed. 06512_ Penetrated by HV Slug. 06512_ as-05322 destroyed. 06516_ Aluminum Leg destroyed. 06518_ Penetrated by HV Slug. 06519_ Machine disabled. 06519_ Imp. Aluminum Leg destroyed. 06521_ HV Slug penetrates Wall. 06521_ Imp. Heat Sink destroyed. 06523_ Penetrated by HV Slug. 06530_ Critical hit (Destroy). 06530_ Cld. Ion Engine destroyed. Map ----- +----------------------------------------------------+ | ?????????????????????????????????????????????????? | | ?????????????????????????????????????????????????? | | ?????????????????????????????????????????????????? | | ?????????????????????????????????????????????????? | | ?????????????????????????????????????????????????? | | ???????????????????????????? ????????????????? | | ??????????????????????????" ??????????????? | | ??????????????????????????" ?????????????? | | ??????????????????????????" ?????????????? | | ??????????????????????????" ?????????????? | | ??????????????????????????" ?????????????? | | ??????????????????????????# ?????????????? | | ??????????????????????????# ??????????????? | | ??????????????????????????#" ??????????????? | | ??????????????????????????#" ???????????????? | | ??????????????????????????#" ????????????????? | | ?????????????????????????##" #????????????????? | | ????????????????????????##"" #????????????????? | | ???????????????????######"" #????????????????? | | ??????????????????##""""""" ##???????????????? | | ??????????????? """""" " "" ###??###########? | | ??????????? "" """ " ;####"""""""""## | | ??????????? " " " "" """"# | | ?????????? | | ?????????? """ | | ?????????? @ " | | ?????????? % " | | ?????????? " | | ??????????? """""" % | | ??????????? ######""" | | ???????????? ""#?????#####"" | | ???????????? """#??????????##"" | | ???????????? """#????????????#"""" | | ????????????? ?????????????????#"" | | ????????????? ????????????????????""" | | ?????????????????????????????????? | | ?????????????????????????????????? | | ?????????????????????????????????? | | ?????????????????????????????????? | | ?????????????????????????????????? " | | ???????????????????????????????????? """ | | ??????????????????????????????????????" ""#" | | ???????????????????????????????????????????##""""" | | ????????????????????????????????????????????###### | | ?????????????????????????????????????????????????? | | ?????????????????????????????????????????????????? | | ?????????????????????????????????????????????????? | | ?????????????????????????????????????????????????? | | ?????????????????????????????????????????????????? | | ?????????????????????????????????????????????????? | +----------------------------------------------------+ Best States ------------- Heat Dissipation 42 Energy Generation 14 Energy Capacity 280 Matter Stores 300 Matter Capacity 300 Sight Range 16 Terrain Scan Density 10 Armor Coverage 225 Propulsion Shielding 33 Evasion (%) 55 Targeting Accuracy 5 Recoil Reduction 2 Item Schematics ----------------- None Robot Schematics ------------------ None Fabricated ------------ Nothing Repaired ---------- Propulsion Shielding | 24% | -10/Materials Carbon-fiber Leg | 57% | -9/Materials Aluminum Leg | 61% | -9/Materials Imp. Heat Sink | 62% | -9/Materials Hvy. Particle Cannon | 66% | -9/Materials Imp. Heat Sink | 62% | -9/Materials Hvy. Ion Engine | 73% | -9/Materials Studied --------- None Alien Tech Used ----------------- None Achievements -------------- DATA ERROR: Steam Global Achievement% For Emergencies Only Organ Harvest That Tickles Challenges ------------ None Game ------ Seed AssemblyFusionEdition Manual? 0 Play Time 01:10:01 Cumulative 961.1 hours Start 2025.11.02 @ 22:14:27 End 2025.11.02 @ 23:30:30 Sessions 1 Manual Loads 0 Difficulty Rogue Special Mode None Game No. 516 Rogue 516 Adventurer 0 Explorer 0 Win Type - Total 68 Types 38/5/14/6/1/1/3/0/0/0 Lore% 74 Gallery% 75 Achievement% 42 Wizard Run 0 Options --------- Layout 1 ASCII 0 Keyboard 0 Movement Mouse Keybinds 0 Fullscreen 1 Font 64/SmallcapsGlow Map View 50x35 Zoom Use 0% Tactical HUD 1 Map Filters NONE Filters NONE Steam 0 RUN: 80d90b51-514f-4f73-b2cc-7434a5fe80a9